[Event "Portuguese-ch U14-20 2022"]
[Site "Fatima"]
[Date "2022.04.12"]
[Round "4.15"]
[White "Goncalves, Samuel Jesus P"]
[Black "Bastiao, Tomas"]
[Result "0-1"]
[ECO "D71"]
[WhiteElo "1807"]
[BlackElo "1664"]
[Annotator "NA RC"]
[PlyCount "84"]
[EventDate "2022.04.10"]
[EventType "swiss"]
[EventCountry "POR"]
[SourceTitle "playchess.com"]
[Source "ChessBase"]
[SourceQuality "1"]
[TimeControl "5400+30"]

1. d4 {[%emt 0:01:43]} Nf6 {[%emt 0:00:06]} 2. c4 {[%emt 0:00:06]} g6 {[%emt 0:00:03]} 3. g3 {[%emt 0:00:06]} Bg7 {[%emt 0:00:06]} 4. Bg2 {[%emt 0:00:03]} O-O {[%emt 0:00:22]} 5. Nc3 {[%emt 0:00:09]} d6 {[%emt 0:00:39]} 6. Nf3 {[%emt 0:00:23]} c6 {[%emt 0:02:10]} 7. O-O {[%emt 0:00:17]} Nbd7 {[%emt 0:05:56]} 8. e4 {[%emt 0:00:27]} e5 {[%emt 0:00:12]} 9. Re1 {[%emt 0:00:05]} Qc7 {[%emt 0:03:34]} 10. h3 {[%emt 0:01:14]} Nb6 {[%emt 0:02:46]} 11. b3 {[%emt 0:03:29]} a5 {[%emt 0:01:28]} 12. Be3 {[%emt 0:09:00]} exd4 {[%emt 0:03:28]} 13. Nxd4 {[%emt 0:02:36]} a4 {[%emt 0:01:46]} 14. Qc2 {[%emt 0:00:46]} Bd7 {[%emt 0:06:54]} 15. Rad1 {[%emt 0:04:26]} axb3 {[%emt 0:01:58]} 16. axb3 {[%emt 0:00:07]} d5 {[%emt 0:02:59]} 17. exd5 {[%emt 0:07:42]} cxd5 {[%emt 0:00:09]} 18. Ndb5 {[%emt 0:02:25]} Bxb5 {[%emt 0:05:11]} 19. Nxb5 {[%emt 0:00:07]} Qc6 {[%emt 0:01:56]} 20. Bxb6 {[%emt 0:00:59]} Qxb6 {[%emt 0:00:09]} 21. Bxd5 {[%emt 0:00:12]} Nxd5 {[%emt 0:09:43]} 22. Rxd5 {[%emt 0:00:08]} Rad8 {[%emt 0:01:34]} 23. Red1 {[%emt 0:00:44]} Rxd5 {[%emt 0:01:22]} 24. Rxd5 {[%emt 0:00:07]} Ra8 {[%emt 0:01:15]} 25. Qd3 {[%emt 0:02:07]} Ra1+ {[%emt 0:01:34]} 26. Kg2 {[%emt 0:00:06]} Qe6 {[%emt 0:00:00]} 27. Qe3 {[%emt 0:06:35]} Qc6 {[%emt 0:07:18]} 28. Qf3 {[%emt 0:03:50]} Qe6 {[%emt 0:13:22]} 29. Nd6 {[%emt 0:07:22]} Bf8 {[%emt 0:02:37]} 30. Qe4 {[%emt 0:04:45]} Qxe4+ {[%emt 0:06:06]} 31. Nxe4 {[%emt 0:00:17]} Rb1 {[%emt 0:00:04]} 32. Rb5 {[%emt 0:01:32]} b6 {[%emt 0:01:13]} 33. Rxb6 {[%emt 0:01:26]} Rb2 {[%emt 0:00:22]} 34. c5 {[%emt 0:00:29]} f5 {[%emt 0:00:20]} 35. Nf6+ {[%emt 0:00:04]} Kf7 {[%emt 0:01:00]} 36. b4 {[%emt 0:08:37]} Bg7 {[%emt 0:00:29]} 37. Nxh7 {[%emt 0:01:17]} Bd4 {[%emt 0:00:32]} 38. Ng5+ {[%emt 0:00:07]} Ke7 {[%emt 0:00:49]} 39. h4 {[%emt 0:00:28]} Bxf2 {[%emt 0:03:06]} 40. Kf3 {[%emt 0:00:53]} Bd4 {[%emt 0:00:45]} 41. Rb7+ {[%emt 0:00:54]} Kf6 {[%emt 0:01:49]} 42. c6 {[%emt 0:01:03]} Rf2# {[%emt 0:00:26]} 0-1

[Event "Portuguese-ch U14-20 2022"]
[Site "Fatima"]
[Date "2022.04.12"]
[Round "4.16"]
[White "Sousa, Ricardo Miguel Morai"]
[Black "Monteiro, Simao Costa"]
[Result "1-0"]
[ECO "A40"]
[WhiteElo "2077"]
[BlackElo "1346"]
[Annotator "TA"]
[PlyCount "65"]
[EventDate "2022.04.10"]
[EventType "swiss"]
[EventCountry "POR"]
[SourceTitle "playchess.com"]
[Source "ChessBase"]
[SourceQuality "1"]
[TimeControl "5400+30"]

{[%evp 10,65,27,16,20,22,11,19,24,15,25,11,20,13,20,0,79,79,72,74,79,72,72,82,98,92,84,81,83,62,131,131,126,123,250,267,254,200,215,212,397,416,407,408,410,404,402,395,370,361,371,366,29987,29988,29995,29996,29998,29999]} 1. d4 e6 2. g3 f5 3. Bg2 Nf6 4. c4 d5 5. Nc3 c6 6. e3 Bd6 {A90: Dutch Defence: Miscellaneous and Modern Stonewall (with ...Bd6).} 7. b3 O-O 8. Bb2 Ne4 {The position is equal.} 9. Nge2 b6 10. O-O Nd7 11. Qc2 Bb7 12. f3 {[#]} Ng5 $146 (12... Nxc3 $11 13. Nxc3 Qg5) ({Predecessor:} 12... Nxc3 13. Nxc3 Rc8 14. e4 f4 15. Bh3 Rf6 16. e5 Rh6 17. Bg4 fxg3 18. exd6 Rxh2 19. Bxe6+ {0-1 (26) Novotny,A (2010)-Panko,R (1781) Kosice 2014}) 13. e4 $16 fxe4 14. fxe4 dxe4 15. Nxe4 Nxe4 16. Qxe4 Qe7 17. Nf4 Rae8 18. Bh3 Bxf4 19. Rxf4 Nf6 ({Black should try} 19... Rxf4 $14 20. Qxf4 (20. gxf4 Nf6 $14) 20... e5 21. dxe5 (21. Qf5 exd4 22. Qxd7 Qe3+ 23. Kh1 Bc8 $11) 21... Nxe5) 20. Qe5 {&Bianco is more active.} Nd7 21. Rxf8+ Qxf8 {Loses the game.} (21... Kxf8 $16 22. Qe3 Nf6) 22. Qc7 $18 ({Don't take} 22. Bxe6+ $6 Kh8 23. Qf5 (23. Bxd7 Rxe5 24. Rf1 Re8 $15) 23... Qxf5 24. Bxf5 Nf6) 22... Bc8 23. Re1 Nf6 24. Qxc6 e5 $2 {[#]} (24... Qb4 {was worth a try.} 25. Re2 (25. Rxe6 $2 Bxe6 26. Bxe6+ Kh8 $19) 25... Bd7) 25. Bxc8 Rxc8 26. Qe6+ Kh8 27. Rxe5 Re8 28. Qf5 Rxe5 29. dxe5 Qc5+ 30. Kg2 Qe3 $2 {[#]} (30... Ng8 $18 31. Qe4 Qa5) 31. exf6 {White mates.} Qe2+ 32. Kh3 gxf6 33. Qxf6+ {Weighted Error Value: White=0.05 (flawless) /Black=0.49} 1-0

[Event "Portuguese-ch U14-20 2022"]
[Site "Fatima"]
[Date "2022.04.12"]
[Round "4.17"]
[White "Asseiceiro, Lucas Teixeira"]
[Black "Gama, Joao Tiago"]
[Result "0-1"]
[ECO "B22"]
[WhiteElo "1580"]
[BlackElo "1637"]
[Annotator "NA RC"]
[PlyCount "54"]
[EventDate "2022.04.10"]
[EventType "swiss"]
[EventCountry "POR"]
[SourceTitle "playchess.com"]
[Source "ChessBase"]
[SourceQuality "1"]
[TimeControl "5400+30"]

1. e4 {[%emt 0:02:13]} c5 {[%emt 0:02:00]} 2. c3 {[%emt 0:00:45]} g6 {[%emt 0:00:25]} 3. Nf3 {[%emt 0:00:49]} Bg7 {[%emt 0:00:31]} 4. d4 {[%emt 0:00:41]} cxd4 {[%emt 0:00:41]} 5. cxd4 {[%emt 0:00:10]} d6 {[%emt 0:00:09]} 6. Nc3 {[%emt 0:02:39]} Nc6 {[%emt 0:00:47]} 7. Be3 {[%emt 0:02:20]} Nf6 {[%emt 0:01:22]} 8. Be2 {[%emt 0:02:14]} O-O {[%emt 0:00:21]} 9. O-O {[%emt 0:01:11]} a6 {[%emt 0:00:10]} 10. Qd2 {[%emt 0:00:32]} b5 {[%emt 0:00:05]} 11. a3 {[%emt 0:01:05]} Bb7 {[%emt 0:00:38]} 12. d5 {[%emt 0:03:55]} Na5 {[%emt 0:01:24]} 13. Qc2 {[%emt 0:06:30]} Rc8 {[%emt 0:00:39]} 14. b4 {[%emt 0:03:20]} Nxd5 {[%emt 0:03:19]} 15. Bd4 {[%emt 0:09:14]} Nxc3 {[%emt 0:02:30]} 16. bxa5 {[%emt 0:06:08]} Bxe4 {[%emt 0:00:09]} 17. Qd2 {[%emt 0:03:05]} Nxe2+ {[%emt 0:00:16]} 18. Qxe2 {[%emt 0:01:10]} Bxf3 {[%emt 0:00:04]} 19. Qxf3 {[%emt 0:01:32]} Bxd4 {[%emt 0:00:06]} 20. Rae1 {[%emt 0:00:33]} Bc3 {[%emt 0:00:36]} 21. Re4 {[%emt 0:01:46]} Bxa5 {[%emt 0:00:28]} 22. Rh4 {[%emt 0:01:09]} Rc4 {[%emt 0:02:05]} 23. g4 {[%emt 0:02:03]} Qd7 {[%emt 0:00:33]} 24. h3 {[%emt 0:01:36]} Bd2 {[%emt 0:00:28]} 25. Qg2 {[%emt 0:02:27]} Bg5 {[%emt 0:00:07]} 26. Rh5 {[%emt 0:00:17]} gxh5 {[%emt 0:00:20]} 27. gxh5 {[%emt 0:01:18]} Kh8 {[%emt 0:00:03]} 0-1

[Event "Portuguese-ch U14-20 2022"]
[Site "Fatima"]
[Date "2022.04.12"]
[Round "4.18"]
[White "Oliveira, Maria Elisa Ramos Ma"]
[Black "Pina, Tiago"]
[Result "0-1"]
[ECO "A46"]
[WhiteElo "1316"]
[BlackElo "1938"]
[Annotator "RC"]
[PlyCount "58"]
[EventDate "2022.04.10"]
[EventType "swiss"]
[EventCountry "POR"]
[SourceTitle "playchess.com"]
[Source "ChessBase"]
[SourceQuality "1"]
[TimeControl "5400+30"]

1. d4 {[%emt 0:00:05]} Nf6 {[%emt 0:00:07]} 2. Nf3 {[%emt 0:00:14]} e6 {[%emt 0:00:11]} 3. e3 {[%emt 0:00:21]} b6 {[%emt 0:00:19]} 4. Bd3 {[%emt 0:00:35]} Bb7 {[%emt 0:00:19]} 5. b3 {[%emt 0:00:54]} Be7 {[%emt 0:00:27]} 6. Bb2 {[%emt 0:00:50]} O-O {[%emt 0:00:30]} 7. Nbd2 {[%emt 0:01:37]} d6 {[%emt 0:01:03]} 8. O-O {[%emt 0:01:12]} Nbd7 {[%emt 0:00:12]} 9. Re1 {[%emt 0:05:33]} c5 {[%emt 0:02:32]} 10. Qe2 {[%emt 0:07:12]} Qc7 {[%emt 0:04:20]} 11. Nc4 {[%emt 0:04:45]} Ne4 {[%emt 0:02:49]} 12. Ncd2 {[%emt 0:06:19]} f5 {[%emt 0:01:09]} 13. Bc4 {[%emt 0:02:46]} d5 {[%emt 0:00:16]} 14. Bd3 {[%emt 0:01:30]} Bf6 {[%emt 0:07:13]} 15. c4 {[%emt 0:03:59]} g5 {[%emt 0:03:31]} 16. Rf1 {[%emt 0:05:46]} Rae8 {[%emt 0:10:43]} 17. Bxe4 {[%emt 0:09:22]} dxe4 {[%emt 0:04:33]} 18. Ne1 {[%emt 0:00:33]} Rd8 {[%emt 0:05:35]} 19. f3 {[%emt 0:02:59]} cxd4 {[%emt 0:03:38]} 20. exd4 {[%emt 0:02:35]} Nc5 {[%emt 0:01:15]} 21. fxe4 {[%emt 0:02:09]} Nxe4 {[%emt 0:00:49]} 22. Nxe4 {[%emt 0:01:58]} Bxe4 {[%emt 0:00:08]} 23. Rd1 {[%emt 0:00:34]} g4 {[%emt 0:04:57]} 24. Nc2 {[%emt 0:04:59]} Qg7 {[%emt 0:01:43]} 25. Rf4 {[%emt 0:05:11]} Rd7 {[%emt 0:03:55]} 26. Ba3 {[%emt 0:02:39]} Rfd8 {[%emt 0:01:16]} 27. c5 {[%emt 0:02:20]} Bxc2 {[%emt 0:09:22]} 28. Qxc2 {[%emt 0:00:32]} Bxd4+ {[%emt 0:00:29]} 29. Kh1 {[%emt 0:02:24]} Bxc5 {[%emt 0:01:05]} 0-1

[Event "Portuguese-ch U14-20 2022"]
[Site "Fatima"]
[Date "2022.04.12"]
[Round "4.19"]
[White "Tejo, Joao Jorge De Medeir"]
[Black "Bernardo, Beatriz Nunes"]
[Result "1-0"]
[ECO "C54"]
[WhiteElo "1844"]
[BlackElo "1144"]
[Annotator "NA RC"]
[PlyCount "69"]
[EventDate "2022.04.10"]
[EventType "swiss"]
[EventCountry "POR"]
[SourceTitle "playchess.com"]
[Source "ChessBase"]
[SourceQuality "1"]
[TimeControl "5400+30"]

1. e4 e5 2. Nf3 Nc6 3. Bc4 Bc5 4. c3 Nf6 5. d4 exd4 6. e5 d5 7. Bb5 Ne4 8. cxd4 Bb6 9. h3 O-O 10. O-O a6 11. Bxc6 bxc6 12. Re1 h6 13. Nc3 Ba5 14. Bd2 Nxd2 15. Qxd2 Qe7 16. Qc2 Be6 17. a3 c5 18. dxc5 Bxc3 19. Qxc3 c6 20. Re2 Rab8 21. Nd4 Qg5 22. Nxc6 Rbc8 23. Nd4 Qe7 24. b4 f6 25. exf6 Rxf6 26. Rae1 Rcf8 27. Nxe6 Rxe6 28. Rxe6 Qf7 29. R6e2 Rc8 30. Qd3 a5 31. Re7 Qh5 32. R1e5 Qxe5 33. Rxe5 axb4 34. Qxd5+ Kh8 35. axb4 1-0

[Event "Portuguese-ch U14-20 2022"]
[Site "Fatima"]
[Date "2022.04.12"]
[Round "4.21"]
[White "Rodrigues, Jose Pedro Da Costa"]
[Black "Ferreira, Tiago Filipe Quiteri"]
[Result "1-0"]
[ECO "D00"]
[WhiteElo "1533"]
[BlackElo "1699"]
[Annotator "NA RC"]
[PlyCount "27"]
[EventDate "2022.04.10"]
[EventType "swiss"]
[EventCountry "POR"]
[SourceTitle "playchess.com"]
[Source "ChessBase"]
[SourceQuality "1"]
[TimeControl "5400+30"]

1. d4 d5 2. Bf4 Bf5 3. e3 e6 4. c3 c5 5. Nd2 c4 6. e4 Bg6 7. b3 b5 8. a4 Qb6 9. axb5 Qxb5 10. bxc4 dxc4 11. Nxc4 Qb7 12. Qa4+ Qd7 13. Nd6+ Bxd6 14. Bb5 1-0

[Event "Portuguese-ch U14-20 2022"]
[Site "Fatima"]
[Date "2022.04.12"]
[Round "4.22"]
[White "Guia, Artur Solovyov Eloy"]
[Black "Ribeiro, Gustavo"]
[Result "1/2-1/2"]
[ECO "D02"]
[WhiteElo "1932"]
[BlackElo "1860"]
[Annotator "RC"]
[PlyCount "54"]
[EventDate "2022.04.10"]
[EventType "swiss"]
[EventCountry "POR"]
[SourceTitle "playchess.com"]
[Source "ChessBase"]
[SourceQuality "1"]
[TimeControl "5400+30"]

1. d4 {[%emt 0:00:16]} d5 {[%emt 0:00:14]} 2. Bf4 {[%emt 0:00:28]} Nf6 {[%emt 0:00:16]} 3. Nf3 {[%emt 0:00:32]} Bf5 {[%emt 0:01:02]} 4. e3 {[%emt 0:00:54]} e6 {[%emt 0:00:41]} 5. c3 {[%emt 0:01:00]} Nbd7 {[%emt 0:00:46]} 6. Be2 {[%emt 0:07:10]} c5 {[%emt 0:01:54]} 7. Nbd2 {[%emt 0:02:08]} Qb6 {[%emt 0:00:58]} 8. Nh4 {[%emt 0:08:41]} Bg6 {[%emt 0:12:47]} 9. Nxg6 {[%emt 0:00:35]} hxg6 {[%emt 0:00:06]} 10. Qc2 {[%emt 0:04:16]} Rc8 {[%emt 0:00:54]} 11. Qb3 {[%emt 0:01:12]} c4 {[%emt 0:01:20]} 12. Qxb6 {[%emt 0:02:51]} Nxb6 {[%emt 0:03:18]} 13. h3 {[%emt 0:02:10]} Na4 {[%emt 0:05:10]} 14. Rb1 {[%emt 0:00:21]} b5 {[%emt 0:00:19]} 15. Bd1 {[%emt 0:03:15]} Nb6 {[%emt 0:00:43]} 16. O-O {[%emt 0:05:41]} b4 {[%emt 0:02:23]} 17. Bc2 {[%emt 0:01:23]} Nfd7 {[%emt 0:07:26]} 18. Rfc1 {[%emt 0:05:27]} a5 {[%emt 0:01:15]} 19. Bg3 {[%emt 0:07:29]} Be7 {[%emt 0:07:41]} 20. Nf3 {[%emt 0:09:16]} O-O {[%emt 0:01:17]} 21. Ne5 {[%emt 0:03:00]} Nb8 {[%emt 0:00:31]} 22. e4 {[%emt 0:02:25]} Nc6 {[%emt 0:01:45]} 23. exd5 {[%emt 0:03:46]} Nxe5 {[%emt 0:01:09]} 24. Bxe5 {[%emt 0:00:10]} exd5 {[%emt 0:01:26]} 25. Bf4 {[%emt 0:01:17]} Rfe8 {[%emt 0:01:37]} 26. Re1 {[%emt 0:01:25]} Kf8 {[%emt 0:02:20]} 27. Kf1 {[%emt 0:00:14]} a4 {[%emt 0:01:11]} 1/2-1/2

[Event "Portuguese-ch U14-20 2022"]
[Site "Fatima"]
[Date "2022.04.12"]
[Round "4.23"]
[White "Paiva, Rodrigo Garcia"]
[Black "Bartolo, Filipe Diogo Correia"]
[Result "0-1"]
[ECO "A88"]
[WhiteElo "1667"]
[BlackElo "1869"]
[Annotator "NA RC"]
[PlyCount "124"]
[EventDate "2022.04.10"]
[EventType "swiss"]
[EventCountry "POR"]
[SourceTitle "playchess.com"]
[Source "ChessBase"]
[SourceQuality "1"]
[TimeControl "5400+30"]

1. d4 {[%emt 0:05:27]} f5 {[%emt 0:00:09]} 2. g3 {[%emt 0:04:37]} Nf6 {[%emt 0:00:06]} 3. Bg2 {[%emt 0:00:37]} g6 {[%emt 0:00:08]} 4. Nf3 {[%emt 0:00:21]} Bg7 {[%emt 0:00:05]} 5. c4 {[%emt 0:00:43]} O-O {[%emt 0:00:25]} 6. O-O {[%emt 0:00:08]} d6 {[%emt 0:00:06]} 7. Nc3 {[%emt 0:06:08]} c6 {[%emt 0:00:20]} 8. Re1 {[%emt 0:01:48]} Na6 {[%emt 0:05:03]} 9. e4 {[%emt 0:07:24]} Nxe4 {[%emt 0:00:18]} 10. Nxe4 {[%emt 0:00:12]} fxe4 {[%emt 0:00:05]} 11. Rxe4 {[%emt 0:00:50]} Bf5 {[%emt 0:07:23]} 12. Re1 {[%emt 0:00:42]} e5 {[%emt 0:00:44]} 13. dxe5 {[%emt 0:07:43]} dxe5 {[%emt 0:00:06]} 14. Be3 {[%emt 0:00:20]} Qxd1 {[%emt 0:05:53]} 15. Rexd1 {[%emt 0:02:31]} Bg4 {[%emt 0:00:16]} 16. Ng5 {[%emt 0:00:36]} Bxd1 {[%emt 0:00:12]} 17. Rxd1 {[%emt 0:00:02]} Rfd8 {[%emt 0:01:23]} 18. Rc1 {[%emt 0:09:59]} Nc7 {[%emt 0:08:37]} 19. Be4 {[%emt 0:01:49]} h6 {[%emt 0:08:34]} 20. Nf3 {[%emt 0:01:20]} Kf7 {[%emt 0:00:46]} 21. Nh4 {[%emt 0:03:28]} g5 {[%emt 0:01:17]} 22. Nf5 {[%emt 0:00:46]} Ne6 {[%emt 0:14:49]} 23. c5 {[%emt 0:04:06]} Bf8 {[%emt 0:12:06]} 24. h4 {[%emt 0:05:49]} Nd4 {[%emt 0:00:29]} 25. Kg2 {[%emt 0:02:01]} Nxf5 {[%emt 0:04:14]} 26. Bxf5 {[%emt 0:00:01]} Be7 {[%emt 0:00:24]} 27. h5 {[%emt 0:00:32]} Bf6 {[%emt 0:01:15]} 28. Be4 {[%emt 0:00:17]} Rd7 {[%emt 0:03:25]} 29. Bf5 {[%emt 0:00:24]} Rc7 {[%emt 0:00:27]} 30. b3 {[%emt 0:01:05]} Rd8 {[%emt 0:00:39]} 31. Kf3 {[%emt 0:02:30]} e4+ {[%emt 0:00:37]} 32. Bxe4 {[%emt 0:01:33]} Rcd7 {[%emt 0:03:04]} 33. Bc2 {[%emt 0:01:24]} Bd4 {[%emt 0:00:48]} 34. b4 {[%emt 0:02:39]} Bxe3 {[%emt 0:01:36]} 35. Kxe3 {[%emt 0:00:29]} Re7+ {[%emt 0:01:12]} 36. Kf3 {[%emt 0:00:26]} Kf6 {[%emt 0:01:06]} 37. g4 {[%emt 0:01:54]} Rd2 {[%emt 0:01:28]} 38. Bb3 {[%emt 0:00:27]} Rd4 {[%emt 0:00:14]} 39. b5 {[%emt 0:00:28]} Ree4 {[%emt 0:09:51]} 40. a4 {[%emt 0:02:52]} Rb4 {[%emt 0:03:54]} 41. Rc3 {[%emt 0:02:51]} Rxg4 {[%emt 0:00:53]} 42. Rd3 {[%emt 0:00:16]} Ke5 {[%emt 0:03:46]} 43. Re3+ {[%emt 0:00:26]} Rge4 {[%emt 0:00:26]} 44. Rd3 {[%emt 0:00:26]} Rbd4 {[%emt 0:00:07]} 45. Rc3 {[%emt 0:00:26]} Rh4 {[%emt 0:01:12]} 46. Kg2 {[%emt 0:00:59]} Rdg4+ {[%emt 0:00:55]} 47. Kf1 {[%emt 0:00:36]} Rh1+ {[%emt 0:00:14]} 48. Ke2 {[%emt 0:00:01]} Rxh5 {[%emt 0:00:15]} 49. a5 {[%emt 0:00:49]} Re4+ {[%emt 0:00:59]} 50. Kd2 {[%emt 0:00:02]} Rh2 {[%emt 0:01:00]} 51. a6 {[%emt 0:00:49]} Rxf2+ {[%emt 0:00:05]} 52. Kc1 {[%emt 0:00:08]} bxa6 {[%emt 0:01:16]} 53. bxc6 {[%emt 0:00:15]} Re1+ {[%emt 0:00:15]} 54. Bd1 {[%emt 0:00:12]} Rf6 {[%emt 0:00:08]} 55. Kd2 {[%emt 0:00:22]} Rxd1+ {[%emt 0:00:05]} 56. Kxd1 {[%emt 0:00:03]} Rxc6 {[%emt 0:00:04]} 57. Re3+ {[%emt 0:00:31]} Kd5 {[%emt 0:00:14]} 58. Re7 {[%emt 0:00:02]} Kxc5 {[%emt 0:00:19]} 59. Rxa7 {[%emt 0:00:07]} Kd5 {[%emt 0:00:08]} 60. Ke2 {[%emt 0:00:06]} Ke5 {[%emt 0:00:07]} 61. Rf7 {[%emt 0:00:35]} h5 {[%emt 0:00:33]} 62. Kf2 {[%emt 0:00:19]} Rf6+ {[%emt 0:00:05]} 0-1

[Event "Portuguese-ch U14-20 2022"]
[Site "Fatima"]
[Date "2022.04.12"]
[Round "4.24"]
[White "Sarabando, Rodrigo Andias"]
[Black "Basilio, Rodrigo"]
[Result "0-1"]
[ECO "A40"]
[WhiteElo "1897"]
[BlackElo "1941"]
[Annotator "NA RC"]
[PlyCount "82"]
[EventDate "2022.04.10"]
[EventType "swiss"]
[EventCountry "POR"]
[SourceTitle "playchess.com"]
[Source "ChessBase"]
[SourceQuality "1"]
[TimeControl "5400+30"]

1. d4 {[%emt 0:05:46]} Nf6 {[%emt 0:00:05]} 2. c4 {[%emt 0:00:07]} e6 {[%emt 0:00:03]} 3. g3 {[%emt 0:00:07]} c5 {[%emt 0:00:07]} 4. d5 {[%emt 0:00:08]} exd5 {[%emt 0:00:09]} 5. cxd5 {[%emt 0:00:08]} d6 {[%emt 0:00:03]} 6. Nc3 {[%emt 0:01:29]} g6 {[%emt 0:00:07]} 7. Bg2 {[%emt 0:00:09]} Bg7 {[%emt 0:00:05]} 8. e4 {[%emt 0:00:32]} O-O {[%emt 0:00:13]} 9. Nge2 {[%emt 0:00:06]} Re8 {[%emt 0:03:36]} 10. O-O {[%emt 0:00:36]} Na6 {[%emt 0:16:23]} 11. a4 {[%emt 0:09:39]} Nb4 {[%emt 0:23:01]} 12. Kh1 {[%emt 0:05:55]} b6 {[%emt 0:00:52]} 13. h3 {[%emt 0:00:30]} Ba6 {[%emt 0:00:30]} 14. Re1 {[%emt 0:00:30]} Nd3 {[%emt 0:13:48]} 15. Rf1 {[%emt 0:00:03]} Nb4 {[%emt 0:12:17]} 16. Re1 {[%emt 0:10:01]} Re7 {[%emt 0:07:52]} 17. f3 {[%emt 0:04:02]} Nd7 {[%emt 0:00:39]} 18. Nb5 {[%emt 0:01:12]} Ne5 {[%emt 0:02:11]} 19. Nec3 {[%emt 0:01:15]} Ned3 {[%emt 0:05:22]} 20. Rf1 {[%emt 0:02:26]} Qd7 21. Kh2 {[%emt 0:01:03]} Rae8 {[%emt 0:01:03]} 22. h4 {[%emt 0:00:30]} Bc8 {[%emt 0:02:01]} 23. Rb1 {[%emt 0:02:37]} h6 {[%emt 0:00:30]} 24. Bf4 {[%emt 0:00:30]} Nxf4 {[%emt 0:02:48]} 25. gxf4 {[%emt 0:19:47]} a6 {[%emt 0:03:08]} 26. Na3 {[%emt 0:00:55]} Bf6 27. h5 gxh5 {[%emt 0:02:01]} 28. Rg1 {[%emt 0:00:39]} Kh8 {[%emt 0:00:22]} 29. Qd2 {[%emt 0:00:41]} Rg8 {[%emt 0:01:33]} 30. f5 Kh7 {[%emt 0:00:46]} 31. Bh1 {[%emt 0:03:42]} Ree8 {[%emt 0:00:21]} 32. Ne2 {[%emt 0:01:40]} Qe7 33. Ng3 {[%emt 0:01:36]} Be5 {[%emt 0:00:47]} 34. Kg2 Rxg3+ {[%emt 0:00:45]} 35. Kf1 {[%emt 0:00:37]} Qh4 {[%emt 0:01:02]} 36. Rxg3 {[%emt 0:00:35]} Bxg3 {[%emt 0:01:07]} 37. Bg2 {[%emt 0:00:16]} Bf4 {[%emt 0:00:29]} 38. Qc3 {[%emt 0:00:23]} Bxf5 {[%emt 0:01:50]} 39. exf5 {[%emt 0:01:10]} Nxd5 {[%emt 0:00:10]} 40. Qd3 {[%emt 0:01:00]} Ne3+ {[%emt 0:00:30]} 41. Kg1 {[%emt 0:00:30]} Qh2+ {[%emt 0:00:30]} 0-1

[Event "Portuguese-ch U14-20 2022"]
[Site "Fatima"]
[Date "2022.04.12"]
[Round "4.25"]
[White "Coelho, Goncalo Cavaz"]
[Black "Goncalves, Ruan Lucas Alves"]
[Result "1/2-1/2"]
[ECO "C77"]
[WhiteElo "1680"]
[BlackElo "1963"]
[Annotator "RC"]
[PlyCount "90"]
[EventDate "2022.04.10"]
[EventType "swiss"]
[EventCountry "POR"]
[SourceTitle "playchess.com"]
[Source "ChessBase"]
[SourceQuality "1"]
[TimeControl "5400+30"]

1. e4 {[%emt 0:00:04]} e5 2. Nf3 {[%emt 0:00:09]} Nc6 {[%emt 0:00:06]} 3. Bb5 {[%emt 0:00:06]} a6 {[%emt 0:00:13]} 4. Ba4 {[%emt 0:00:08]} Nf6 {[%emt 0:00:05]} 5. d3 {[%emt 0:00:18]} b5 {[%emt 0:00:11]} 6. Bb3 {[%emt 0:00:07]} d6 {[%emt 0:00:22]} 7. O-O {[%emt 0:00:20]} Be7 {[%emt 0:00:54]} 8. Bd2 {[%emt 0:00:40]} O-O {[%emt 0:00:20]} 9. h3 {[%emt 0:00:12]} Nb8 {[%emt 0:01:48]} 10. Nc3 {[%emt 0:00:28]} Nbd7 {[%emt 0:01:19]} 11. a3 {[%emt 0:01:14]} Nc5 {[%emt 0:02:02]} 12. Ba2 {[%emt 0:00:23]} Be6 {[%emt 0:01:32]} 13. Be3 {[%emt 0:04:54]} Bxa2 14. Rxa2 {[%emt 0:00:25]} Ne6 {[%emt 0:01:18]} 15. d4 {[%emt 0:13:09]} exd4 {[%emt 0:00:57]} 16. Bxd4 {[%emt 0:00:18]} c6 {[%emt 0:03:52]} 17. Re1 {[%emt 0:01:51]} Qd7 {[%emt 0:01:16]} 18. Ra1 {[%emt 0:04:51]} Rad8 {[%emt 0:01:42]} 19. Bb6 {[%emt 0:04:53]} Rb8 {[%emt 0:00:46]} 20. Bd4 {[%emt 0:00:35]} Rfd8 {[%emt 0:01:20]} 21. e5 {[%emt 0:03:31]} dxe5 {[%emt 0:02:17]} 22. Bxe5 {[%emt 0:00:23]} Rb7 {[%emt 0:00:08]} 23. Qe2 {[%emt 0:01:23]} Qc8 {[%emt 0:01:21]} 24. Rad1 {[%emt 0:03:15]} Rbd7 {[%emt 0:00:51]} 25. Nd4 {[%emt 0:07:29]} Nxd4 {[%emt 0:11:41]} 26. Bxd4 {[%emt 0:00:11]} h6 {[%emt 0:05:02]} 27. Be5 {[%emt 0:08:28]} Rxd1 {[%emt 0:05:27]} 28. Rxd1 {[%emt 0:00:12]} Rxd1+ {[%emt 0:00:34]} 29. Qxd1 {[%emt 0:00:12]} Qf5 {[%emt 0:00:06]} 30. Qe2 {[%emt 0:01:05]} Qe6 {[%emt 0:01:03]} 31. Kf1 {[%emt 0:03:38]} Nd5 {[%emt 0:03:42]} 32. Nxd5 {[%emt 0:02:34]} cxd5 {[%emt 0:05:18]} 33. Bd4 {[%emt 0:03:20]} Bf6 {[%emt 0:01:37]} 34. Qd2 {[%emt 0:03:31]} Bg5 {[%emt 0:01:46]} 35. Qc3 {[%emt 0:00:38]} f6 {[%emt 0:08:58]} 36. Qf3 {[%emt 0:21:00]} Bd2 {[%emt 0:00:32]} 37. Qe2 {[%emt 0:00:27]} Qxe2+ {[%emt 0:01:05]} 38. Kxe2 {[%emt 0:00:07]} Bf4 {[%emt 0:00:06]} 39. Kf3 {[%emt 0:00:37]} Be5 {[%emt 0:05:41]} 40. Ke3 {[%emt 0:02:09]} Kf7 {[%emt 0:00:35]} 41. f4 {[%emt 0:00:30]} Bd6 {[%emt 0:01:41]} 42. g4 {[%emt 0:00:57]} g6 {[%emt 0:00:07]} 43. f5 {[%emt 0:01:05]} gxf5 {[%emt 0:01:46]} 44. gxf5 {[%emt 0:00:10]} Be5 {[%emt 0:02:19]} 45. Kd3 {[%emt 0:03:10]} Ke7 {[%emt 0:01:02]} 1/2-1/2

[Event "Portuguese-ch U14-20 2022"]
[Site "Fatima"]
[Date "2022.04.12"]
[Round "4.26"]
[White "Nalivaiko, Maksim"]
[Black "Veleirinho, Tomas Carvalho"]
[Result "1-0"]
[ECO "C50"]
[WhiteElo "1439"]
[BlackElo "1641"]
[Annotator "NA RC"]
[PlyCount "53"]
[EventDate "2022.04.10"]
[EventType "swiss"]
[EventCountry "POR"]
[SourceTitle "playchess.com"]
[Source "ChessBase"]
[SourceQuality "1"]
[TimeControl "5400+30"]

1. e4 e5 2. Nf3 Nc6 3. Bc4 Bc5 4. Nc3 Nf6 5. d3 h6 6. a3 a6 7. Be3 Bxe3 8. fxe3 d6 9. O-O O-O 10. h3 Re8 11. Nh4 Be6 12. Bxe6 fxe6 13. Qf3 Rf8 14. Qg3 Nh7 15. Rxf8+ {[%emt 0:19:09]} Nxf8 {[%emt 1:19:22]} 16. Rf1 {[%emt 0:01:15]} Qd7 {[%emt 0:00:39]} 17. Qg4 {[%emt 0:00:36]} Rd8 {[%emt 0:01:30]} 18. Ne2 {[%emt 0:03:34]} Ne7 {[%emt 0:03:03]} 19. Ng3 {[%emt 0:00:49]} Kh7 {[%emt 0:00:58]} 20. Nh5 {[%emt 0:00:20]} Neg6 {[%emt 0:01:43]} 21. Nxg6 {[%emt 0:05:20]} Nxg6 {[%emt 0:00:38]} 22. Rf6 {[%emt 0:01:20]} Qe8 {[%emt 0:07:31]} 23. Rxe6 {[%emt 0:01:22]} Qf7 {[%emt 0:01:17]} 24. Qf5 {[%emt 0:00:51]} Qxf5 {[%emt 0:03:12]} 25. exf5 {[%emt 0:00:17]} Nf8 {[%emt 0:00:58]} 26. Re7 {[%emt 0:00:10]} Rd7 {[%emt 0:00:08]} 27. Nf6+ 1-0